[Event "XX Gran Hotel Bali-A 2023"]
[Site "Benidorm"]
[Date "2023.12.02"]
[Round "2.1"]
[White "De La Puerta Cresis, Javier"]
[Black "Grigoryan, Karen H."]
[Result "0-1"]
[ECO "D26"]
[WhiteElo "2181"]
[BlackElo "2646"]
[Annotator "TA"]
[PlyCount "96"]
[EventDate "2023.12.02"]
[EventType "swiss"]
[EventCountry "ESP"]
[SourceTitle "playchess.com"]
[Source "ChessBase"]
[SourceQuality "1"]
[TimeControl "5400+30"]

{[%evp 9,95,31,41,20,35,23,51,17,29,19,19,14,22,31,17,17,34,24,20,31,55,15,6,7,8,-19,-7,-13,-7,-12,-8,-20,-10,-23,-13,-29,-13,-19,-19,-8,-2,-18,-19,-16,0,0,0,-15,0,-81,-31,-61,-67,-52,-21,-25,0,-204,-199,-199,-178,-138,-20,-244,-220,-235,-228,-230,-79,-69,-70,-64,-20,-26,-5,-5,0,0,0,0,0,-14,-14,-5297,-4133,-29998,-29999,-29999]} 1. d4 {[%emt 0:00:03]} d5 {[%emt 0:08:26]} 2. c4 {[%emt 0:00:07]} dxc4 {[%emt 0:00:25]} 3. e3 {[%emt 0:01:24]} Nf6 {[%emt 0:00:45]} 4. Bxc4 {[%emt 0:00:35]} e6 {[%emt 0:00:47]} 5. Nf3 {[%emt 0:00:20]} a6 {[%emt 0:01:12]} 6. Be2 {[%emt 0:01:24] [#] D26: Queen's Gambit Accepted: 4 e3 e6 5 Bxc5 c5 sidelines.} Bd6 $146 {[%emt 0:01:32]} ({Predecessor:} 6... c5 7. O-O cxd4 8. Nxd4 Bd6 9. Nd2 O-O 10. b3 e5 11. Nc2 Nc6 12. Nc4 Bc7 13. Ba3 Re8 {1-0 Nepomniachtchi,I (2771)-Xiong,J (2681) Saint Louis Blitz 2023 (7)}) 7. O-O {[%emt 0:01:45]} b6 {[%emt 0:01:00]} 8. Nbd2 {[%emt 0:01:57] White is slightly better.} Bb7 {[%emt 0:02:57]} 9. Nc4 {[%emt 0:00:41]} O-O {[%emt 0:03:34]} 10. b3 {[%emt 0:02:11]} Nbd7 {[%emt 0:04:40][%cal Bb8d7,Bd7b6,Bb6d5][%mdl 32]} 11. Nxd6 {[%emt 0:02:15]} cxd6 {[%emt 0:00:11]} 12. Ba3 {[%emt 0:03:29]} Qb8 {[%emt 0:04:04]} 13. Nd2 {[%emt 0:06:09]} b5 {[%emt 0:02:35] Wards off Nc4} 14. Rc1 {[%emt 0:04:22]} Nb6 {[%emt 0:04:26]} 15. Bf3 {[%emt 0:07:25]} Bxf3 {[%emt 0:03:39]} 16. Qxf3 {[%emt 0:00:35]} a5 {[%emt 0:00:27]} 17. Ne4 {[%emt 0:09:35]} Nxe4 {[%emt 0:00:32]} 18. Qxe4 {[%emt 0:00:02]} b4 {[%emt 0:02:34]} 19. Bb2 {[%emt 0:00:02]} Nd5 {[%emt 0:00:42]} 20. Qd3 {[%emt 0:08:58] Repels Qb5} f5 {[%emt 0:01:30]} 21. a4 {[%emt 0:05:09]} Qe8 {[%emt 0:05:08]} 22. Rc2 {[%emt 0:02:24]} Qd7 {[%emt 0:19:36]} 23. Rfc1 {[%emt 0:41:08]} Rfc8 {[%emt 0:00:37]} 24. Qb5 {[%emt 0:00:00]} Qd8 {[%emt 0:03:11]} 25. Qb7 {[%emt 0:00:00][%cal Rc2c8]} Rcb8 {[%emt 0:02:53]} 26. Qc6 {[%emt 0:00:00]} h5 {[%emt 0:01:15]} 27. Qc4 {[%emt 0:00:00]} Qg5 {[%emt 0:02:38]} 28. Qd3 {[%emt 0:00:00]} Rf8 {[%emt 0:00:12]} 29. Re1 {[%emt 0:00:00]} (29. Qd2 $11 {keeps the balance.}) 29... h4 {[%emt 0:01:55]} (29... f4 $1 $17) 30. Bc1 {[%emt 0:00:00]} h3 {[%emt 0:01:09][%csl Gh3][%cal Rg5g2]} 31. f3 {[%emt 0:00:00]} Qh5 {[%emt 0:02:51]} 32. e4 {[%emt 0:00:00]} Nc3 {[%emt 0:00:23]} 33. Bd2 $2 {[%emt 0:05:00]} (33. e5 $11 {and White has nothing to worry.}) 33... fxe4 $19 {[%emt 0:01:50]} 34. fxe4 {[%emt 0:00:00]} hxg2 $1 {[%emt 0:00:08]} 35. Bxc3 {[%emt 0:00:00] Bd2 is the strong threat.} bxc3 {[%emt 0:00:09] Black is more active.} (35... Rf3 $1 $17 {[%cal Rf3d3]} 36. Qc4 Raf8 37. Rxg2 (37. Qxe6+ $2 {perishes.} Kh8 $19) 37... bxc3) 36. Rxc3 {[%emt 0:00:00]} (36. Kxg2 $11 Rf4 37. Rxc3) 36... Qg4 $1 {[%emt 0:01:02][%cal Of8f1] ...Rf1+! would be deadly.} 37. Rc2 {[%emt 0:00:00]} Rf3 {[%emt 0:01:06]} 38. Qc4 {[%emt 0:00:00] [#]} Rf1+ $1 $40 {[%emt 0:05:17][%mdl 640] Black is out for blood.} 39. Rxf1 $17 {[%emt 0:00:00]} gxf1=Q+ {[%emt 0:00:13]} 40. Kxf1 {[%emt 0:00:00]} Qxe4 {[%emt 0:00:42][%mdl 4096] Endgame White should prevent ...d5. KQR-KQR} 41. Rf2 {[%emt 0:00:00]} Kh8 {[%emt 0:01:59]} 42. Qc3 {[%emt 0:00:47]} Rb8 {[%emt 0:00:44]} 43. Qxa5 {[%emt 0:00:51]} Qd3+ {[%emt 0:00:21]} (43... Rxb3 $2 {leads to mate.} 44. Rf8+ Kh7 45. Qh5#) 44. Kg2 {[%emt 0:00:37]} d5 {[%emt 0:01:05] White must now prevent ...Qe4+.} 45. Qc7 {[%emt 0:00:55]} Qe4+ {[%emt 0:10:38]} 46. Kf1 $2 {[%emt 0:01:23][%mdl 8192]} (46. Rf3 $11 Rxb3 47. Qf4 Rb2+ 48. Kg1 Rb1+ 49. Kg2) 46... Rxb3 $19 {[%emt 0:00:00] ( -> ...Rb1+)} 47. Re2 {[%emt 0:01:13]} Qh1+ {[%emt 0:00:00]} 48. Kf2 {[%emt 0:00:02]} Rf3# {[%emt 0:00:00] An entertaining game by Grigoryan.   Weighted Error Value: White=0.51/Black=0.15 (very precise)} 0-1

[Event "XX Gran Hotel Bali-A 2023"]
[Site "Benidorm"]
[Date "2023.12.02"]
[Round "2.2"]
[White "Mitrabha, Guha"]
[Black "Sijpkens, Michiel"]
[Result "0-1"]
[ECO "D02"]
[WhiteElo "2516"]
[BlackElo "2165"]
[Annotator "TA"]
[PlyCount "86"]
[EventDate "2023.12.02"]
[EventType "swiss"]
[EventCountry "ESP"]
[SourceTitle "playchess.com"]
[Source "ChessBase"]
[SourceQuality "1"]
[TimeControl "5400+30"]

{[%evp 9,86,0,3,8,4,3,10,1,29,39,81,65,65,29,32,0,0,-32,-23,-72,-61,-68,-77,-115,-86,-110,-116,-149,-100,-135,-109,-123,-121,-118,-64,-52,-54,-55,-57,-71,-33,-137,-149,-144,-85,-182,-177,-343,-327,-332,-333,-752,-750,-705,-317,-1081,-337,-325,-253,-337,-340,-393,-366,-350,-346,-683,-681,-647,-606,-1152,-623,-5106,-957,-29980,-29981,-29981,-29982,-29982,-29983]} 1. d4 {[%emt 0:02:36]} d5 {[%emt 0:00:15]} 2. Nf3 {[%emt 0:00:09]} e6 {[%emt 0:00:14]} 3. Bf4 {[%emt 0:00:02]} Bd6 {[%emt 0:00:25]} 4. e3 {[%emt 0:00:02]} Bxf4 {[%emt 0:00:27]} 5. exf4 {[%emt 0:00:02]} Qd6 {[%emt 0:00:42]} 6. Qd2 {[%emt 0:00:49] D02: 1 d4 d5 2 Nf3 sidelines, including 2...Nf6 3 g3 and 2...Nf6 3 Bf4.} b6 {[%emt 0:00:41]} 7. Nc3 {[%emt 0:00:30]} Ne7 {[%emt 0:00:57] [#]} 8. h4 $146 {[%emt 0:01:17][%cal Bh2h4,Bh4h5,Bh5h6][%mdl 32] The position is equal.} ({Predecessor:} 8. O-O-O O-O 9. h4 c5 10. h5 c4 11. Ne5 f6 12. Ng4 a6 13. h6 g6 14. g3 {1-0 Koustav,C (2513)-Svane,R (2615) Titled Tuesday intern op 13th Sep Early blitz 2022 (5)}) 8... O-O {[%emt 0:03:39]} 9. h5 {[%emt 0:00:06]} c5 {[%emt 0:02:31]} 10. h6 {[%emt 0:00:28] hxg7 would be deadly.} g6 {[%emt 0:00:23]} 11. Nb5 {[%emt 0:02:14]} Qc6 {[%emt 0:06:02] Black is weak on the dark squares} 12. Ne5 {[%emt 0:04:07]} Qb7 {[%emt 0:00:15]} 13. dxc5 {[%emt 0:02:03]} bxc5 {[%emt 0:11:29]} 14. Qc3 {[%emt 0:00:09]} (14. c4 $11 {feels stronger.}) 14... f6 $1 $17 {[%emt 0:00:26]} 15. Ng4 {[%emt 0:01:26]} Nd7 {[%emt 0:00:13]} 16. O-O-O {[%emt 0:01:30]} Qc6 {[%emt 0:09:06]} 17. Na3 {[%emt 0:03:51]} Rb8 {[%emt 0:04:49] Prevents Bb5} 18. Rh3 {[%emt 0:01:44]} d4 {[%emt 0:18:28]} (18... Rb6 $142 19. Kb1 Qa4) 19. Qd2 {[%emt 0:04:50]} Nd5 {[%emt 0:06:10]} 20. Rb3 {[%emt 0:00:28]} N7b6 {[%emt 0:01:48][%cal Oe6e5]} 21. f3 {[%emt 0:12:51] [#]} e5 {[%emt 0:05:53]} 22. fxe5 $15 {[%emt 0:01:43]} Bxg4 {[%emt 0:00:10]} 23. fxg4 {[%emt 0:00:05]} fxe5 {[%emt 0:00:15][%cal Bf6e5,Be5e4,Be4e3][%mdl 32] aiming for ...c4.} 24. Nc4 {[%emt 0:08:02]} e4 {[%emt 0:03:40]} 25. Nxb6 {[%emt 0:01:39]} ({White must play} 25. Qg5 $1 $15 Kh8 26. Nxb6 axb6 27. Qe5+ Nf6 28. Bb5) 25... e3 $36 {[%emt 0:01:37][%mdl 2048] Black is in control.} (25... Rxb6 26. Bc4 Kh8 27. Qg5 $16) 26. Qd3 {[%emt 0:01:19] Threatens to win with Nxd5.} axb6 {[%emt 0:00:52] Black is more active.} (26... Rxb6 27. Qe4 Nf4 28. Bc4+ Kh8 29. Qe5+ (29. Qe7 Qf6 $11) 29... Qf6 30. Qc7 $14) (26... Nxb6 $142 27. Qa6 Rb7 28. Bc4+ Kh8) 27. Qc4 {[%emt 0:00:27]} (27. Qe4 $17 Kh8 28. Bc4) 27... Kh8 $19 {[%emt 0:02:23]} 28. Be2 $2 {[%emt 0:00:17]} (28. Kb1) 28... Nf4 {[%emt 0:08:45] Strongly threatening ...b5.} 29. Bf3 {[%emt 0:00:02]} b5 {[%emt 0:01:11][%cal Bb6b5,Bb5c4][%mdl 32]} 30. Bxc6 $2 {[%emt 0:04:22]} (30. Qxd4+ cxd4 31. Bxc6) 30... bxc4 {[%emt 0:00:08]} 31. Rxb8 {[%emt 0:00:03]} Rxb8 {[%emt 0:00:07][%mdl 4096] Endgame KRB-KRN} (31... Ne2+ $142 32. Kb1 Rxb8) 32. Rf1 $2 {[%emt 0:01:05]} (32. Bf3 d3 33. cxd3 {[%mdl 64] Remove Defender} Nxd3+ 34. Kc2) 32... Rf8 $2 {[%emt 0:02:49]} (32... e2 33. Re1 d3 34. c3 $19) (32... Ne2+ 33. Kb1 Nc3+ 34. Kc1 Nxa2+ 35. Kb1 d3 36. Kxa2 e2) 33. Re1 {[%emt 0:01:05]} Rf6 {[%emt 0:01:53]} 34. Bf3 {[%emt 0:05:19] [#]} g5 $1 {[%emt 0:00:21]} 35. Kd1 {[%emt 0:02:38]} Rxh6 {[%emt 0:00:47]} 36. g3 {[%emt 0:00:02]} Rh3 {[%emt 0:01:57]} 37. Bb7 $2 {[%emt 0:02:18]} (37. gxf4 Rxf3 38. fxg5 Kg7 $19) (37. Rg1 d3 38. cxd3 cxd3 39. Be4) 37... Rxg3 {[%emt 0:00:45]} 38. a4 {[%emt 0:00:03]} d3 {[%emt 0:02:12][%cal Bd4d3,Bd3d2][%mdl 32]} (38... Rxg4 39. a5 $17) 39. a5 {[%emt 0:00:07]} d2 {[%emt 0:01:08]} ({Weaker is} 39... Rxg4 40. a6 c3 41. bxc3 $14) 40. Rh1 {[%emt 0:00:02]} Nh3 {[%emt 0:00:59]} ({And not} 40... Rxg4 41. a6 Ne6 42. Ke2 $11 (42. a7 Nc7 $15)) (40... Rh3 $142 41. Rg1 Rh6) 41. Ke2 {[%emt 0:00:02] [#]} Rg1 $1 {[%emt 0:00:56] Black mates.} 42. Rxg1 {[%emt 0:01:57]} Nxg1+ {[%emt 0:00:07]} 43. Kd1 {[%emt 0:00:01]} Nh3 {[%emt 0:00:27] Weighted Error Value: White=0.91/Black=0.54} 0-1

[Event "XX Gran Hotel Bali-A 2023"]
[Site "Benidorm"]
[Date "2023.12.02"]
[Round "2.3"]
[White "Shimelkov, Vasiliy"]
[Black "Domingo Nunez, Ruben"]
[Result "0-1"]
[ECO "E13"]
[WhiteElo "2159"]
[BlackElo "2429"]
[Annotator "TA"]
[PlyCount "48"]
[EventDate "2023.12.02"]
[EventType "swiss"]
[EventCountry "ESP"]
[SourceTitle "playchess.com"]
[Source "ChessBase"]
[SourceQuality "1"]
[TimeControl "5400+30"]

{[%evp 23,48,-18,-14,-22,-8,-61,-48,-60,-66,-61,-55,-63,-53,-69,-62,-140,-121,-113,-121,-128,-120,-426,-426,-444,-444,-519,-522]} 1. d4 {[%emt 0:00:05]} Nf6 {[%emt 0:01:06]} 2. Nf3 {[%emt 0:00:13]} b6 {[%emt 0:00:47]} 3. c4 {[%emt 0:00:56]} e6 {[%emt 0:00:52]} 4. Nc3 {[%emt 0:00:42]} Bb4 {[%emt 0:01:25]} 5. Bg5 {[%emt 0:00:45]} h6 {[%emt 0:00:21]} 6. Bh4 {[%emt 0:00:11]} g5 {[%emt 0:00:02]} 7. Bg3 {[%emt 0:00:07]} Ne4 {[%emt 0:00:03]} 8. Qc2 {[%emt 0:00:08]} Bb7 {[%emt 0:00:03]} 9. e3 {[%emt 0:00:09]} d6 {[%emt 0:00:02]} 10. Bd3 {[%emt 0:00:43]} Bxc3+ {[%emt 0:00:04]} 11. bxc3 {[%emt 0:00:07]} f5 {[%emt 0:00:01]} 12. d5 {[%emt 0:01:25]} Nd7 {[%emt 0:00:06][%cal Bb8d7,Bd7c5,Bc5d3][%mdl 32]} 13. Nd4 {[%emt 0:01:36] E13: Queen's Indian/Nimzo-Indian hybrid: 4 Nc3 Bb7 5 Bg5 h6 6 Bh4 Bb4.} Ndc5 {[%emt 0:00:19]} (13... exd5 14. f3 dxc4 15. Bxc4 Nxg3 16. hxg3 $14) 14. f3 {[%emt 0:05:32]} (14. O-O $11) 14... Nxd3+ $15 {[%emt 0:03:39]} 15. Qxd3 {[%emt 0:00:08] Black is slightly better.} Nc5 {[%emt 0:00:02]} 16. Qc2 {[%emt 0:03:10]} Qf6 {[%emt 0:03:47]} 17. dxe6 {[%emt 0:05:37]} f4 {[%emt 0:29:03]} 18. exf4 {[%emt 0:12:21]} gxf4 {[%emt 0:00:08]} 19. Bxf4 {[%emt 0:00:26]} Qxf4 $17 {[%emt 0:00:20]} 20. Qg6+ {[%emt 0:00:08]} Kd8 {[%emt 0:00:01] [#] Threatens to win with ...Qe3+.} 21. O-O {[%emt 0:00:54]} Qg5 {[%emt 0:03:47] [#]} 22. e7+ $146 {[%emt 0:02:15][%mdl 8192]} ({Predecessor:} 22. Qf7 Qe7 23. Qh5 Qg5 24. Qf7 Qe7 {½-½ Sergienko,S (2449)-Olenin,N (2353) RUS-chT2 Sochi 2008 (1)}) 22... Kd7 $19 {[%emt 0:00:26] Black is clearly winning.} (22... Kxe7 $2 {loses.} 23. Rae1+ Kf8 24. Qc2 $19) (22... Qxe7 $2 23. Rae1 Qh7 24. Qg4 $19 (24. Re8+ $2 Kd7 $19)) 23. Qf7 {[%emt 0:02:45][%csl Gf7][%cal Re7e8]} Rae8 {[%emt 0:02:24]} (23... Qxe7 $2 {is the wrong capture.} 24. Qf5+ Kd8 25. Rae1 $19) 24. h4 {[%emt 0:04:32]} Rxe7 {[%emt 0:11:03] Artfully played by Domingo Nunez.   Weighted Error Value: White=0.44/Black=0.01 (flawless)} ({Stronger than} 24... Qxh4 25. Qf5+ Kxe7 26. Qxc5 bxc5 27. Nf5+ Kf6 28. Nxh4 $17) 0-1

[Event "XX Gran Hotel Bali-A 2023"]
[Site "Benidorm"]
[Date "2023.12.02"]
[Round "2.4"]
[White "Moskalenko, Viktor"]
[Black "Motos Abellan, Daniel"]
[Result "1-0"]
[ECO "A47"]
[WhiteElo "2427"]
[BlackElo "2151"]
[Annotator "TA"]
[PlyCount "69"]
[EventDate "2023.12.02"]
[EventType "swiss"]
[EventCountry "ESP"]
[SourceTitle "playchess.com"]
[Source "ChessBase"]
[SourceQuality "1"]
[TimeControl "5400+30"]

{[%evp 12,69,0,1,2,-5,-2,-7,0,-34,-32,-34,-36,-45,-31,-38,-34,-37,-30,-35,0,0,1,0,18,0,0,0,61,0,0,0,0,0,0,-11,16,17,17,-11,-8,-4,0,0,60,60,147,91,209,203,206,175,12825,6969,1650,1558,29990,29991,29992,29993]} 1. d4 {[%emt 0:01:54]} Nf6 {[%emt 0:00:03]} 2. Nf3 {[%emt 0:01:03]} b6 {[%emt 0:00:31]} 3. Bg5 {[%emt 0:01:49]} e6 {[%emt 0:00:52]} 4. Nbd2 {[%emt 0:00:10]} Bb7 {[%emt 0:00:12]} 5. e3 {[%emt 0:00:35]} Be7 {[%emt 0:00:09]} 6. Bd3 {[%emt 0:00:19]} c5 {[%emt 0:00:07]} 7. c3 {[%emt 0:05:39]} h6 {[%emt 0:00:16] A47: 1 d4 Nf6 2 Nf3 b6: Torre, London and Colle Systems.} 8. Bxf6 {[%emt 0:01:36]} Bxf6 {[%emt 0:00:07]} 9. Qe2 {[%emt 0:00:09]} Nc6 {[%emt 0:00:26] The position is equal.} 10. O-O-O {[%emt 0:00:52]} d5 {[%emt 0:02:43]} 11. h4 {[%emt 0:04:24] [#]} c4 $146 {[%emt 0:00:17]} ({Predecessor:} 11... Qc7 12. Kb1 O-O-O 13. Ba6 Rhe8 14. Bxb7+ Qxb7 15. g4 g6 16. g5 hxg5 17. hxg5 Bg7 {1-0 Atkins,R (2093)-Davey,M (2011) BCF-chT1a 1617 (4NCL) 2016 (3.38)}) 12. Bc2 {[%emt 0:00:06]} b5 {[%emt 0:00:04]} 13. e4 {[%emt 0:00:07]} Be7 {[%emt 0:02:02]} 14. exd5 {[%emt 0:03:57]} exd5 {[%emt 0:00:13] aiming for ...0-0.} 15. Ne5 {[%emt 0:00:34]} Nxe5 {[%emt 0:13:43]} (15... O-O $5) 16. Qxe5 {[%emt 0:20:09]} Kf8 {[%emt 0:01:32]} 17. Nf3 {[%emt 0:07:07]} b4 {[%emt 0:06:15]} 18. Qe3 {[%emt 0:09:56]} (18. Qf4 {is more complex.} bxc3 19. bxc3 Bd6 20. Ne5) 18... bxc3 {[%emt 0:06:26]} 19. bxc3 {[%emt 0:12:58]} Bc8 {[%emt 0:03:15]} ({Better is} 19... h5 $11) 20. Rde1 {[%emt 0:06:26] White is more active.} (20. h5 $14) 20... h5 $11 {[%emt 0:03:41]} 21. Ng5 {[%emt 0:03:45] Qf4 would be deadly.} Qd6 {[%emt 0:17:03] Against Qf4} 22. Kd2 {[%emt 0:03:51]} g6 {[%emt 0:20:35]} 23. Nf3 {[%emt 0:01:11]} Bf6 {[%emt 0:00:58]} (23... Rb8 {simplifies} 24. Rb1 Rb6 25. Rxb6 axb6 26. g3 Kg7) 24. Ne5 {[%emt 0:00:15][%cal Oe5g6]} Kg7 {[%emt 0:00:44]} 25. Qg3 {[%emt 0:01:23]} (25. Qf4 $5 {[%cal Re5g6]}) 25... Rb8 {[%emt 0:02:06] Threatens to win with ...Rb2.} 26. Rb1 $132 {[%emt 0:00:35][%mdl 2048] Repels Rb2. White is not keeping still} Rb6 {[%emt 0:05:47]} 27. f4 {[%emt 0:03:55][%cal Bf2f4,Bf4e5][%mdl 32]} Bxe5 {[%emt 0:01:10]} (27... Rxb1 $11 28. Rxb1 Qd8) 28. fxe5 $14 {[%emt 0:00:21]} Qa3 {[%emt 0:02:55]} (28... Qd8 $14) 29. Qg5 {[%emt 0:06:33]} (29. Rxb6 $142 axb6 30. Qf3) 29... Be6 {[%emt 0:07:57]} (29... Qa6 $16 {might work better.}) 30. Qf6+ $18 {[%emt 0:01:54]} Kh7 {[%emt 0:00:01]} 31. g4 {[%emt 0:00:38]} ({Don't take} 31. Rxb6 axb6 32. g4 Qf8) 31... Rb2 $2 {[%emt 0:03:07] [#]} (31... Qf8) 32. Rxb2 {[%emt 0:00:14]} (32. gxh5 $2 {perishes.} Rxc2+ 33. Kxc2 Qxa2+ 34. Rb2 Bf5+ $19) 32... Qxb2 {[%emt 0:00:04]} 33. Rb1 {[%emt 0:00:28]} Qxa2 {[%emt 0:00:12] Black is weak on the dark squares} 34. Rb7 {[%emt 0:00:11][%csl Gc2][%cal Rf6g6]} Rg8 {[%emt 0:01:02]} 35. Qxe6 {[%emt 0:00:23] Weighted Error Value: White=0.11 (very precise) /Black=0.37} 1-0

[Event "XX Gran Hotel Bali-A 2023"]
[Site "Benidorm"]
[Date "2023.12.02"]
[Round "2.5"]
[White "Ni, Viktorija"]
[Black "Ilinca, Felix-Antonio"]
[Result "1-0"]
[ECO "E20"]
[WhiteElo "2139"]
[BlackElo "2395"]
[Annotator "TA"]
[PlyCount "93"]
[EventDate "2023.12.02"]
[EventType "swiss"]
[EventCountry "ESP"]
[SourceTitle "playchess.com"]
[Source "ChessBase"]
[SourceQuality "1"]
[TimeControl "5400+30"]

{[%evp 11,93,4,-1,7,72,77,120,113,104,35,102,67,118,56,83,75,171,169,180,178,306,306,307,234,223,194,231,232,231,200,205,200,185,204,208,196,211,206,220,164,251,247,334,315,304,274,358,364,346,339,307,48,252,242,486,317,543,502,501,502,767,758,786,776,789,787,786,782,770,769,659,597,756,637,738,722,723,284,614,471,864,842,2168,2165]} 1. d4 {[%emt 0:08:33]} Nf6 {[%emt 0:00:35]} 2. c4 {[%emt 0:00:26]} e6 {[%emt 0:00:23]} 3. Nf3 {[%emt 0:01:27][%cal Bg1f3,Bf3d4,Bd4b5][%mdl 32]} c5 {[%emt 0:00:39]} 4. Nc3 {[%emt 0:05:54]} cxd4 {[%emt 0:02:00]} 5. Nxd4 {[%emt 0:00:36]} Bb4 {[%emt 0:02:03]} 6. g3 {[%emt 0:10:37]} O-O {[%emt 0:04:49] 6...0-0 scores better than 6...Ne4.} 7. Bg2 {[%emt 0:00:36] E20: Nimzo-Indian: 4 g3 and 4 f3.} Qc7 {[%emt 0:06:24]} (7... d5 $11) 8. Qb3 $16 {[%emt 0:04:57]} Bc5 {[%emt 0:05:52]} 9. Ndb5 {[%emt 0:02:37] White is better.} Qd8 {[%emt 0:05:34] [#]} 10. Na4 {[%emt 0:09:05] [#]} (10. Bf4 $1 $16) 10... Be7 $146 {[%emt 0:04:18]} (10... Qa5+ $14 11. Bd2 Bxf2+ 12. Kd1 Qd8) ({Predecessor:} 10... Na6 11. Nxc5 Nxc5 12. Qa3 d6 13. Be3 Ng4 14. Bxc5 dxc5 15. Qxc5 Qf6 16. O-O Qxb2 {1-0 Mikhalchishin,A (2479)-Worek,J (2292) EU-ch rapid Katowice 2017 (9)}) 11. Bf4 {[%emt 0:01:50]} Ne8 {[%emt 0:02:46] Dodges Bc7. Black is weak on the dark squares} ({Better is} 11... Qa5+ $14 12. Nac3 (12. Bd2 Qd8 $16) 12... Nc6) 12. O-O-O {[%emt 0:07:24]} (12. O-O $16) 12... Nc6 $14 {[%emt 0:04:56]} 13. Kb1 $36 {[%emt 0:03:38][%mdl 2048] White is in control. White has more active pieces. The black rooks are badly placed.} a6 {[%emt 0:06:42]} (13... e5 $16 {is a better defense.}) 14. Bxc6 $18 {[%emt 0:07:06]} bxc6 {[%emt 0:04:47]} 15. Nd4 {[%emt 0:02:35][%cal Od4c6] Black must now prevent Nxc6!} Bg5 {[%emt 0:11:14]} (15... d6 $142) 16. Nb6 {[%emt 0:10:23]} Bxf4 {[%emt 0:07:41]} 17. Nxa8 {[%emt 0:00:29]} Bd6 {[%emt 0:02:45]} 18. Nb6 {[%emt 0:03:50][%cal Od4c6] aiming for Nxc6!} Bb7 {[%emt 0:01:20] [#]} 19. c5 $1 {[%emt 0:02:00]} Bxc5 {[%emt 0:03:50]} 20. Na4 {[%emt 0:06:43][%mdl 64] Discovered Attack} Bxd4 {[%emt 0:00:31]} 21. Qxb7 {[%emt 0:00:15]} Bxf2 {[%emt 0:04:24]} 22. Rxd7 {[%emt 0:01:27]} (22. Qxa6 Nf6 $11) 22... Qa5 {[%emt 0:00:33]} 23. Qxc6 {[%emt 0:02:33]} Nf6 {[%emt 0:00:32]} 24. Rc7 {[%emt 0:02:10]} h5 {[%emt 0:03:57]} 25. Rc8 {[%emt 0:00:46]} Qf5+ {[%emt 0:00:40]} (25... g6 $142 26. Rxf8+ Kxf8) 26. Ka1 {[%emt 0:00:37]} Nd5 {[%emt 0:03:08]} 27. Rxf8+ {[%emt 0:03:06]} (27. Qxa6 Nb4 28. Qc4 (28. Rxf8+ Kh7 $11) 28... Rxc8 29. Qxc8+ Kh7 $16) 27... Kxf8 {[%emt 0:00:06]} 28. Rd1 {[%emt 0:00:58]} g5 {[%emt 0:02:00]} 29. Nc3 {[%emt 0:01:42]} ({But not} 29. Qxa6 Ne3 30. Rd8+ Kg7 $18) 29... Ne3 {[%emt 0:07:47]} 30. Rd8+ {[%emt 0:00:10]} Kg7 {[%emt 0:00:06]} 31. Qe4 {[%emt 0:00:20]} (31. Qxa6 {leads to mate.} Nc2+ 32. Kb1 Na3+ 33. Ka1 Qb1+ 34. Nxb1 Nc2#) (31. a3 $18 {Threatens to win with Ne4.} Ng4 32. Qxa6 (32. Qe8 Nf6 $18)) 31... Qf6 $2 {[%emt 0:00:43] A mistake that costs the game.} ({Black should play} 31... g4 $14) 32. Rd3 {[%emt 0:00:46]} Nc2+ {[%emt 0:00:59]} 33. Kb1 {[%emt 0:00:15]} Nd4 {[%emt 0:00:12]} (33... Ne1 34. Rd1 g4) 34. Nd1 {[%emt 0:00:48]} Bg1 {[%emt 0:00:08]} 35. Qg2 {[%emt 0:00:23]} Qf5 {[%emt 0:00:57]} (35... Bxh2 $142 36. Qxh2 Kg6) 36. Qxg1 {[%emt 0:00:31]} Nxe2 {[%emt 0:00:06]} 37. Qe3 {[%emt 0:00:26]} Ng1 {[%emt 0:00:08]} 38. a3 {[%emt 0:00:51]} g4 {[%emt 0:00:22]} 39. Ka2 {[%emt 0:00:31]} Nf3 {[%emt 0:00:07]} 40. Nc3 {[%emt 0:00:32]} Nxh2 {[%emt 0:00:19]} 41. Ne4 {[%emt 0:00:29] And now Nd6 would win.} Nf3 {[%emt 0:00:07]} 42. Nd2 {[%emt 0:00:29]} Ne5 {[%emt 0:00:17]} 43. Rc3 {[%emt 0:00:35]} Ng6 {[%emt 0:00:13]} 44. Qd3 $2 {[%emt 0:00:30]} (44. Rc5 e5 45. Nc4) 44... Qe5 {[%emt 0:00:11]} (44... Qxd3 45. Rxd3 f5) 45. Nc4 {[%emt 0:00:20] White is clearly winning.} Qf6 {[%emt 0:00:10]} (45... Qd5 $142 46. Qe3 f6 47. Qa7+ Kh6 48. Qxa6 Kg5) 46. Nd6 {[%emt 0:00:04] White threatens Ne8+ and mate.} Qe7 {[%emt 0:00:21] [#] Wards off Ne8+} 47. Rc7 $3 {[%emt 0:00:15][%mdl 512] A cool game by Ni.   Weighted Error Value: White=0.29 (precise) /Black=0.59} 1-0